Cogmind - Beta 16 @@@ ROGUE MODE // 2025.11.14 @ 16:52:59 Player: Star Result: Destroyed by MB-CZK(R) with Subdweller Laser Performance ------------- Evolutions (0) 0 Regions Visited (2) 400 Robots Destroyed (16) 80 Value Destroyed (414) 414 Prototype IDs (0) 0 Alien Tech Used (0) 0 Bonus (0) 0 TOTAL SCORE: 894 Bonus ------- None Cogmind --------- Core Integrity 0/250 Matter 300/300 Energy 100/100 System Corruption 2% Temperature Cool (6) Movement Core (100) Ox1 Location -10/Subcaves Parts ------- > --- POWER (1) -------- (None) > --- PROPULSION (2) --- (None) > --- UTILITY (2) ------ Small Storage Unit > --- WEAPON (2) ------- (None) > --- INVENTORY (8) ---- Light Ion Engine Hover Unit High-capacity Storage Unit Sensor Array Peak State ------------ > --- POWER ------------ Subdweller Power Source > --- PROPULSION ------- Aluminum Leg > --- UTILITY ---------- Improved Heat Sink Small Storage Unit > --- WEAPON ----------- Medium Laser Assault Rifle > --- INVENTORY -------- Light Ion Engine Hover Unit High-capacity Storage Unit Sensor Array [Rating: 9] Favorites ----------- Power Ion Engine Engine Ion Engine Propulsion Aluminum Leg Leg Aluminum Leg Hover Unit Hover Unit Utility Small Storage Unit Device Improved Heat Sink Storage Small Storage Unit Protection Propulsion Shielding Weapon Assault Rifle Energy Gun Medium Laser Ballistic Gun Assault Rifle Build | -11 -10 -10 ------- Run | Yrd Mat Sub Slots Evolved . | . . . Power . | . . . Propulsion . | . . . Utility . | . . . Weapon . | . . . Parts Attached 12 | 5 4 3 Power 2 | 1 . 1 Engine 2 | 1 . 1 Core . | . . . Reactor . | . . . Propulsion 5 | 2 2 1 Treads . | . . . Leg 3 | 2 . 1 Wheel . | . . . Hover 2 | . 2 . Flight . | . . . Utility 3 | 1 1 1 Device 1 | . . 1 Storage 1 | 1 . . Processor . | . . . Hackware . | . . . Protection 1 | . 1 . Artifact . | . . . Weapon 2 | 1 1 . Energy Gun 1 | . 1 . Energy Cannon . | . . . Ballistic Gun 1 | 1 . . Ballistic Cannon . | . . . Launcher . | . . . Special Weapon . | . . . Impact Weapon . | . . . Slashing Weapon . | . . . Piercing Weapon . | . . . Special Melee Weapon . | . . . Unidentified Prototypes . | . . . Parts Lost 10 | . 3 7 Power 2 | . 1 1 Propulsion 4 | . 2 2 Utility 2 | . . 2 Weapon 2 | . . 2 Highest Loss Streak 5 | . 1 5 To Critical Strikes . | . . . Average Backups 3 | 1 3 4 Power . | . . 1 Propulsion 1 | . 1 1 Utility 2 | . 2 2 Weapon . | . . . Tool/Special . | . . . Unused Backups 2 | . . 2 Power . | . . . Propulsion . | . . . Utility 2 | . . 2 Weapon . | . . . Tool/Special . | . . . Average Slot Usage (%) 78 | . 81 66 Engine 10 | . 11 7 Leg 13 | . 13 12 Hover 7 | . 9 . Device 1 | . . 6 Storage 14 | . 14 14 Protection 8 | . 9 4 Energy Gun 8 | . 8 10 Ballistic Gun 12 | . 13 10 Peak Build Rating 9 | 5 7 9 Average Rating 5 | 3 5 6 On Entrance 3 | . 5 5 Avg Prop Armor Cover (%) . | . . . Naked Turns . | . . . Heaviest Build 15 | 12 15 15 Greatest Support 20 | 20 20 10 Greatest Overweight (x) 3 | . 2 3 Average Overweight (x) . | . . . Largest Inventory Capacity 8 | 8 8 8 Average Capacity 7 | 6 8 8 Most Carried 6 | 5 6 5 Average Carried 3 | . 3 4 Final Capacity 8 | 8 8 8 Final Carried 5 | . 5 4 Class Distribution -------------------- 100% | Mutant Dominant Class ---------------- Mutant | -10/Materials Mutant | -10/Subcaves Resources | -11 -10 -10 ----------- Run | Yrd Mat Sub Matter Collected 484 | 230 217 37 Remotely . | . . . Salvage Created 486 | . 449 37 Parts 30 | . 29 1 Haulers Intercepted . | . . . Recyclers Shooed 1 | . 1 . Parts Field Recycled . | . . . Retrieved Matter . | . . . Parts Self-Destructed 6 | . . 6 Prevented . | . . . Parts Restored . | . . . Kills | -11 -10 -10 ------- Run | Yrd Mat Sub Combat Hostiles Destroyed 15 | . 14 1 Guns 15 | . 14 1 Classes Destroyed 4 | . 3 1 Watcher 1 | . 1 . Swarmer 6 | . 6 . Grunt 8 | . 8 . Subdweller 1 | . . 1 Best Kill Streak 5 | . 5 1 Combat Bots Only 5 | . 5 1 Max Kills in Single Turn 1 | . 1 1 Gunslinging . | . . . Exploded . | . . . Melee . | . . . Uniques/NPCs Destroyed . | . . . Combat | -11 -10 -10 -------- Run | Yrd Mat Sub Hostile Shots Fired 109 | . 72 37 Missed 24 | . 15 9 Hits 85 | . 57 28 Projectile 85 | . 57 28 Critical Strikes 5 | . 2 3 Actively Blocked 4 | . 2 2 Damage Taken 1219 | . 641 578 Core 267 | . 100 167 Absorbed by Shields . | . . . Redirected to Shielding 52 | . 39 13 Regen/Repaired (Parts) 77 | . 77 . Core Remaining (%) 100 | 100 . . Volleys Fired 63 | . 47 16 Largest 2 | . 2 2 Hottest 70 | . 70 70 Shots Fired 99 | . 67 32 Gun 99 | . 67 32 Cannon . | . . . Launcher . | . . . Special . | . . . Kinetic 63 | . 47 16 Thermal 36 | . 20 16 Explosive . | . . . Electromagnetic . | . . . Robot Hit Streak 29 | . 29 9 Robot Miss Streak 3 | . 3 1 Penetration Max . | . . . Secondary Targets . | . . . Shots Hit Robots 66 | . 50 16 Core Hits 31 | . 25 6 Critical Kills . | . . . Critical Parts Destroyed . | . . . Critical Strikes 3 | . 2 1 Burn 3 | . 2 1 Melee Attacks . | . . . Impact . | . . . Slashing . | . . . Piercing . | . . . Sneak Attacks . | . . . Combat Hostiles . | . . . Follow-up Attacks . | . . . Damage Inflicted 937 | . 689 248 Guns 884 | . 679 205 Cannons . | . . . Explosions . | . . . Melee . | . . . Ramming 53 | . 10 43 Kinetic 558 | . 453 105 Thermal 326 | . 226 100 Explosive . | . . . Electromagnetic . | . . . Impact . | . . . Slashing . | . . . Piercing . | . . . Highest Corruption 2 | . 2 2 Average Corruption 2 | . 2 2 Corruption Purged . | . . . Corruption Blocked . | . . . Effects 3 | . 1 2 Message Errors 1 | . . 1 Energy Discharges 2 | . 1 1 Overload Shots . | . . . Overflow Damage . | . . . Projectiles . | . . . Explosions . | . . . Melee . | . . . Knockbacks 2 | . . 2 Impact 2 | . . 2 Kinetic . | . . . Secondary . | . . . Self-Inflicted Damage 1 | . . 1 Shots . | . . . Rammed 2 | . . 2 Targets Rammed 22 | . 2 20 Kicked 20 | . 2 18 Crushed . | . . . Highest Temperature 229 | . 229 . Average Temperature 81 | . 81 . Received Heat Transfer 441 | . 273 168 Siege Activations . | . . . Martial Activations . | . . . Shielding Activations . | . . . Robots Disrupted . | . . . Combat Hostiles . | . . . Robots Corrupted . | . . . Combat Hostiles . | . . . Parts Fried . | . . . Impact Corruptions . | . . . Robots Melted . | . . . Combat Hostiles . | . . . Parts Melted 1 | . 1 . Heat Transferred 1184 | . 814 370 Parts Sabotaged . | . . . Parts Stolen . | . . . Parts Stripped . | . . . Power Chain Reactions . | . . . Alert | -11 -10 -10 ------- Run | Yrd Mat Sub Maximum Alert Level . | . . . Low Security (%) 100 | 100 100 . Level 1 . | . . . Level 2 . | . . . Level 3 . | . . . Level 4 . | . . . Level 5 . | . . . High Security . | . . . Max Security . | . . . Peak Influence 173 | . 173 . Initial . | . . . Average 106 | . 112 . Influence Increases 437 | . 437 . Destroy 0b10 Robot/C 280 | . 280 . Destroy 0b10 Robot/NC 5 | . 5 . Destroy Leader 52 | . 52 . Successful Hack 24 | . 24 . Destroy Structure 1 | . 1 . Lose Combat Pursuer 75 | . 75 . Influence Decreases 437 | . 350 87 Entered New Map 43 | . . 43 Time Decay 344 | . 320 24 Lost Part 50 | . 30 20 Squads Dispatched 1 | . 1 . Investigation . | . . . Extermination . | . . . Reinforcement 1 | . 1 . Assault . | . . . Garrison . | . . . Intercept . | . . . Searches Triggered . | . . . Construction Impeded . | . . . Haulers Reinforced . | . . . Active Scanning Responses . | . . . Cargo Convoy Interrupts . | . . . Stealth | -11 -10 -10 --------- Run | Yrd Mat Sub Distress Signals 3 | . 3 . Communications Jammed . | . . . Distress Signals . | . . . Times Spotted 27 | . 25 2 Peak Tracking Total 6 | . 6 1 Tactical Retreats 3 | . 3 . Traps | -11 -10 -10 ------- Run | Yrd Mat Sub Traps Triggered 1 | . 1 . Indirectly . | . . . Trap Hack Attempts . | . . . Triggered . | . . . Disarmed . | . . . Reprogrammed . | . . . Reused . | . . . Traps Extracted . | . . . Installed . | . . . Triggered . | . . . Machines | -11 -10 -10 ---------- Run | Yrd Mat Sub Machines Disabled . | . . . Max in Single Turn . | . . . Machines Repaired . | . . . Machines Dismantled . | . . . Machines Sabotaged . | . . . Overloaded Fab Kills . | . . . Hacking | -11 -10 -10 --------- Run | Yrd Mat Sub Machines Accessed 7 | . 7 . Terminals 6 | . 6 . Fabricators . | . . . Repair Stations 1 | . 1 . Recycling Units . | . . . Scanalyzers . | . . . Garrison Access . | . . . Total Hacks 13 | . 13 . Successful 8 | . 8 . Failed 5 | . 5 . Catastrophic . | . . . Database Lockouts . | . . . Manual 10 | . 10 . Terminals 11 | . 11 . Fabricators . | . . . Repair Stations 2 | . 2 . Recycling Units . | . . . Scanalyzers . | . . . Garrison Access . | . . . Terminal Hacks 2 | . 2 . Terminal Index 1 | . 1 . Zone Layout 1 | . 1 . Fabricator Hacks . | . . . Repair Station Hacks 2 | . 2 . Scan Component 1 | . 1 . Repair 1 | . 1 . Recycling Unit Hacks . | . . . Scanalyzer . | . . . Garrison Access Hacks . | . . . Unauthorized Hacks 4 | . 4 . Terminals 4 | . 4 . Botnet 4 | . 4 . Fabricators . | . . . Repair Stations . | . . . Recycling Units . | . . . Scanalyzers . | . . . Garrison Access . | . . . Data Cores Recovered . | . . . Used . | . . . Hacking Detections 4 | . 4 . Full Trace Events . | . . . Feedback Events . | . . . Feedback Blocked . | . . . Robot Schematics Acquired . | . . . Robots Built . | . . . Authchips . | . . . Time . | . . . Total Robot Build Rating . | . . . Part Schematics Acquired . | . . . Parts Built . | . . . Authchips . | . . . Time . | . . . Total Part Build Rating . | . . . Part Studies Acquired . | . . . Parts Repaired 1 | . 1 . Time 26 | . 26 . Parts Recycled . | . . . Recycled Matter . | . . . Retrieved Matter . | . . . Retrieved Components . | . . . Parts Scanalyzed . | . . . Part Schematics Acquired . | . . . Parts Damaged . | . . . Bothacking | -11 -10 -10 ------------ Run | Yrd Mat Sub Used RIF Installer . | . . . Robots Hacked . | . . . Non-combat . | . . . Combat . | . . . Robot Hacks Applied . | . . . Relay Couplers Released . | . . . Fabnet Peak Effective % . | . . . Robots Rewired . | . . . Allies Hacked . | . . . Hacks Repelled . | . . . Allies | -11 -10 -10 -------- Run | Yrd Mat Sub Total Allies . | . . . Largest Group . | . . . Highest-Rated Group . | . . . Highest-Rated Ally . | . . . Total Orders . | . . . Ally Attacks . | . . . Total Damage . | . . . Kills . | . . . Allies Corrupted . | . . . Allies Melted . | . . . Intel | -11 -10 -10 ------- Run | Yrd Mat Sub Active Infowar (turns) . | . . . Robot Analysis Total . | . . . Derelict Logs Recovered 1 | . . 1 Drone Launches . | . . . Drone Recoveries . | . . . Exploration | -11 -10 -10 ------------- Run | Yrd Mat Sub Turns Passed 991 | 40 789 162 Spaces Moved 558 | 33 485 40 Core 19 | 12 . 7 Treads . | . . . Legs 350 | 21 296 33 Wheels . | . . . Hover 189 | . 189 . Flight . | . . . Fastest Speed 50 | 50 56 100 Average Speed 123 | 94 123 147 Slowest Speed 200 | 120 190 200 Overloaded Moves . | . . . Propulsion Burnouts . | . . . Robots Hopped . | . . . Potential Cave-ins . | . . . Cave-ins Triggered . | . . . Exploration Rate (%) 26 | 3 74 2 Regions Visited 2 Branch Regions 1 Pre-discovered Areas . | . . . Known Exits Taken . | . . . Unknown Exits Taken 2 | 1 1 . Scrap Searched . | . . . Spaces Dug . | . . . Terrain Destroyed . | . . . Melee . | . . . Projectile . | . . . AOE . | . . . Terrain Rammed . | . . . Walls Destroyed . | . . . Machines Disabled . | . . . Actions | -11 -10 -10 --------- Run | Yrd Mat Sub Total 751 | 42 606 103 Wait 79 | . 57 22 Move 556 | 32 484 40 Hop . | . . . Pick Up 16 | 5 9 2 Fast Attach . | . . . Attach 12 | 5 4 3 Detach . | . . . Swap 3 | . 3 . Drop . | . . . Fire 63 | . 47 16 Melee . | . . . Ram 2 | . . 2 Kick 20 | . 2 18 Crush . | . . . Escape Stasis . | . . . Rewire . | . . . Trap . | . . . Miscellaneous . | . . . Route ------- -11/Scrapyard -10/Materials (discovered 4 exits: [*Mat x2] / [*Min] / [*Sub]) -10/Subcaves History --------- Turn | Location | Event 8 | -11/Scrapyard | Discovered new exit (range 16) 41 | -11/Scrapyard | Entered Materials 307 | -10/Materials | Build established: Mutant 339 | -10/Materials | Repaired Assault Rifle 352 | -10/Materials | Discovered new exit (range 8) 596 | -10/Materials | Discovered new exit (range 11) 731 | -10/Materials | Discovered new exit (range 15) 784 | -10/Materials | Discovered new exit (range 9) 830 | -10/Materials | Entered Subcaves 831 | -10/Subcaves | Approached by a straggling Scientist 834 | -10/Subcaves | Learned 4 Materials zone layouts 947 | -10/Subcaves | Core integrity fell below 50% 981 | -10/Subcaves | Core integrity fell below 20% 992 | -10/Subcaves | Destroyed by MB-CZK(R) with Subdweller Laser Last Messages --------------- 00956_ Assault Rifle destroyed. 00956_ Kicked MB-CZK(R). 00956_ MB-CZK(R) knocked back. 00958_ Kicked MB-CZK(R). 00960_ Imp. Heat Sink destroyed. 00962_ Kicked MB-CZK(R) out of the way. 00963_ Kicked MB-CZK(R). 00966_ Kicked MB-CZK(R) out of the way. 00970_ Kicked MB-CZK(R). 00971_ Kicked MB-CZK(R) out of the way. 00972_ Kicked MB-CZK(R). 00977_ Kicked MB-CZK(R) out of the way. 00978_ Kicked MB-CZK(R). 00978_ MB-CZK(R) knocked back. 00981_ Kicked MB-CZK(R). 00982_ Aluminum Leg destroyed. 00982_ Slammed into MB-CZK(R). Y5-VIB(c): "I think it's somewhere east of here" 00984_ Slammed into MB-CZK(R). 00988_ Sub. Power Source destroyed. Map ----- +----------------------------------------------------+ | ?????????????????????????????????????????????????? | | ?????????????????????????????????????????????????? | | ?????????????????????????????????????????????????? | | ?????????????????????????????????????????????????? | | ?????????????????????????????????????????????????? | | ?????????????????????????????????????????????????? | | ?????????????????????????????????????????????????? | | ?????????????????????????????????????????????????? | | ?????????????????????????????????????????????????? | | ?????????????????????????????????????????????????? | | ?????????????????????????????????????????????????? | | ?????????????????????????????????????????????????? | | ?????????????????????????????????????????????????? | | ?????????????????????????????????????????????????? | | ?????????????????????????????????????????????????? | | ?????????????????????????????????????????????????? | | ????????????????#????????????????????????????????? | | ????????????????# ???####?####???????????????????? | | ???????????????## ### #"#"##??????????????????? | | ???????????????? # "" ???????????????????? | | ????????????????#? # ""????????????????????? | | ????????????????# ?# #?????????????????????? | | ???????????????## ## ##%#??????????????????????? | | ???????????????# %=##?????????????????????? | | ???????????????# %%%####??????????????????? | | ???????????????## ## %%@%R""##?????????????????? | | ????????????????##???## % "c" #?????????????????? | | ??????????????????????# """##?????????????????? | | ?????????????????????## ####??????????????????? | | ????????????????????## #?????????????????????? | | ????????????????????# #?????????????????????? | | ????????????????????## #?????????????????????? | | ?????????????????????# #?????????????????????? | | ?????????????????????# ##?????????????????????? | | ????????????????????# ##??????????????????????? | | ????????????????????######???????????????????????? | | ?????????????????????????????????????????????????? | | ?????????????????????????????????????????????????? | | ?????????????????????????????????????????????????? | | ?????????????????????????????????????????????????? | | ?????????????????????????????????????????????????? | | ?????????????????????????????????????????????????? | | ?????????????????????????????????????????????????? | | ?????????????????????????????????????????????????? | | ?????????????????????????????????????????????????? | | ?????????????????????????????????????????????????? | | ?????????????????????????????????????????????????? | | ?????????????????????????????????????????????????? | | ?????????????????????????????????????????????????? | | ?????????????????????????????????????????????????? | +----------------------------------------------------+ Best States ------------- Heat Dissipation 39 Energy Generation 15 Energy Capacity 250 Matter Stores 300 Matter Capacity 300 Sight Range 16 Terrain Scan Density 10 Propulsion Shielding 33 Evasion (%) 55 Item Schematics ----------------- None Robot Schematics ------------------ None Fabricated ------------ Nothing Repaired ---------- Assault Rifle | 23% | -10/Materials Studied --------- None Alien Tech Used ----------------- None Achievements -------------- None Challenges ------------ None Game ------ Seed DisassembledGlidesysCarapace Manual? 0 Play Time 00:10:19 Cumulative 11.6 hours Start 2025.11.14 @ 16:44:01 End 2025.11.14 @ 16:52:59 Sessions 1 Manual Loads 0 Difficulty Rogue Special Mode None Game No. 33 Rogue 33 Adventurer 0 Explorer 0 Win Type - Total 0 Types 0/0/0/0/0/0/0/0/0/0 Lore% 11 Gallery% 16 Achievement% 13 Wizard Run 0 Options --------- Layout 1 ASCII 0 Keyboard 0 Movement Numpad Keybinds 0 Fullscreen 2 Font 32/SmallcapsGlow Map View 50x35 Zoom Use 0% Tactical HUD 1 Map Filters NONE Filters NONE Steam 1 RUN: af5d37c9-26d3-4f4e-b348-17de9cfeac2f